Workbook

Sheet Blad1
A1: Uitslagen Onderlinge wedstrijden 2015
A3: Jongens Pupillen MINI | L3: minuten
A4: Plaats | B4: voornaam | C4: achernaam | D4: 40m | E4: pnt | F4: ver | G4: pnt | H4: bal | I4: pnt | J4: kogel | K4: pnt | M4: 600m | N4: pnt | O4: pnt tot
A5: 1 | B5: Arno | C5: Thomas A. | D5: 9.2 | E5: =IF(D5=0,0,INT(10834/(D5+0.24)-996)) -> 151 | F5: 2.15 | G5: =IF(F5=0,0,IF(F5>4.41,INT(887.99*SQRT(F5)-1264.5),INT((F5-1.91)*200+100.5))) -> 148 | H5: 6.87 | I5: =IF(H5=0,0,INT(126*SQRT(H5)-245.5)) -> 84 | J5: 2.33 | K5: =IF(J5=0,0,INT(303.73*SQRT(J5)-337.5)) -> 126 | L5: 163.88 | M5: 2,43,88 | N5: =IF(L5=0,0,INT(160470.5/L5-811.35)) -> 167 | O5: =SUM(E5,G5,I5,K5,N5) -> 676
A6: 2 | B6: Tibbe | C6: Apeldoorn | D6: 10 | E6: 62 | F6: 1.78 | G6: 74 | H6: 6.92 | I6: 85 | J6: 2.88 | K6: 177 | L6: 200.05 | M6: 3,20,05 | N6: 0 | O6: 398
A7: 3 | B7: Michaél | C7: Winkel | D7: 9.9 | E7: 72 | F7: 1.94 | G7: 106 | H7: 5.25 | I7: 43 | J7: 2.11 | K7: 103 | L7: 200.05 | M7: 3,20,05 | N7: =IF(L7=0,0,INT(160470.5/L7-811.35)) -> -10 | O7: 314
A9: Jongens Pupillen C | L9: minuten
A10: Plaats | B10: Voonaam | C10: Achternaam | D10: 40m | E10: pnt | F10: ver | G10: pnt | H10: bal | I10: pnt | J10: kogel | K10: pnt | M10: 600m | N10: pnt | O10: pnt tot
A11: 1 | B11: Levi | C11: Ravelli L. | D11: 7 | E11: =IF(D11=0,0,INT(10834/(D11+0.24)-996)) -> 500 | F11: 3.35 | G11: =IF(F11=0,0,IF(F11>4.41,INT(887.99*SQRT(F11)-1264.5),INT((F11-1.91)*200+100.5))) -> 388 | H11: 21.66 | I11: =IF(H11=0,0,INT(126*SQRT(H11)-245.5)) -> 340 | J11: 4.08 | K11: =IF(J11=0,0,INT(303.73*SQRT(J11)-337.5)) -> 276 | L11: 142.96 | M11: 2,22,96 | N11: =IF(L11=0,0,INT(160470.5/L11-811.35)) -> 311 | O11: =SUM(E11,G11,I11,K11,N11) -> 1815
A12: 2 | B12: Giosué | C12: Vollaard G. | D12: 7.5 | E12: 403 | F12: 3.08 | G12: 334 | H12: 18.88 | I12: 301 | J12: 3.18 | K12: 204 | L12: 126.66 | M12: 2,06,66 | N12: 455 | O12: 1697
A13: 3 | B13: Teun | C13: Leeuwen T. van | D13: 8 | E13: 318 | F13: 2.69 | G13: 256 | H13: 14.91 | I13: 241 | J13: 2.68 | K13: 159 | L13: 154.14 | M13: 2,34,14 | N13: 229 | O13: 1203
A14: 4 | B14: Otto | C14: Kuijs | D14: 7.6 | E14: 385 | F14: 2.34 | G14: 186 | H14: 7.12 | I14: 90 | J14: 1.96 | K14: 87 | L14: 153.32 | M14: 2,33,32 | N14: 235 | O14: 983
A16: Jongens Pupillen B | L16: minuten
A17: Plaats | B17: Voornaam | C17: Achternaam | D17: 40m | E17: pnt | F17: ver | G17: pnt | H17: bal | I17: pnt | J17: kogel | K17: pnt | M17: 1000m | N17: pnt | O17: pnt tot
A18: 1 | B18: Bart | C18: Houtkamp B.W. | D18: 7 | E18: =IF(D18=0,0,INT(10834/(D18+0.24)-996)) -> 500 | F18: 3.19 | G18: =IF(F18=0,0,IF(F18>4.41,INT(887.99*SQRT(F18)-1264.5),INT((F18-1.91)*200+100.5))) -> 356 | H18: 16.75 | I18: =IF(H18=0,0,INT(126*SQRT(H18)-245.5)) -> 270 | J18: 4.56 | K18: =IF(J18=0,0,INT(303.73*SQRT(J18)-337.5)) -> 311 | L18: 246.97 | M18: 4,06,97 | N18: =IF(L18=0,0,INT(276912/L18-738.5)) -> 382 | O18: =SUM(E18,G18,I18,K18,N18) -> 1819
A19: 2 | B19: Tom | C19: Knapen T. | D19: 7.5 | E19: =IF(D19=0,0,INT(10834/(D19+0.24)-996)) -> 403 | F19: 3.34 | G19: =IF(F19=0,0,IF(F19>4.41,INT(887.99*SQRT(F19)-1264.5),INT((F19-1.91)*200+100.5))) -> 386 | H19: 16.53 | I19: =IF(H19=0,0,INT(126*SQRT(H19)-245.5)) -> 266 | J19: 4.75 | K19: =IF(J19=0,0,INT(303.73*SQRT(J19)-337.5)) -> 324 | L19: 236.27 | M19: 3,56,27 | N19: =IF(L19=0,0,INT(276912/L19-738.5)) -> 433 | O19: =SUM(E19,G19,I19,K19,N19) -> 1812
A20: 3 | B20: Juliën | C20: Janssen J.D. | D20: 8 | E20: =IF(D20=0,0,INT(10834/(D20+0.24)-996)) -> 318 | F20: 2.8 | G20: =IF(F20=0,0,IF(F20>4.41,INT(887.99*SQRT(F20)-1264.5),INT((F20-1.91)*200+100.5))) -> 278 | H20: 12.73 | I20: =IF(H20=0,0,INT(126*SQRT(H20)-245.5)) -> 204 | J20: 4 | K20: =IF(J20=0,0,INT(303.73*SQRT(J20)-337.5)) -> 269 | L20: 262.61 | M20: 4,22,61 | N20: =IF(L20=0,0,INT(276912/L20-738.5)) -> 315 | O20: =SUM(E20,G20,I20,K20,N20) -> 1384
A22: Jongens pupillen A
A23: Plaats | B23: achternaam | C23: voornaam | D23: 60m | E23: pnt | F23: ver | G23: pnt | H23: bal | I23: pnt | J23: kogel | K23: pnt | M23: 1000m | N23: pnt | O23: pnt tot
A24: 1 | B24: Joris | C24: Mens J. | D24: 9.4 | E24: =IF(D24=0,0,INT(15365/(D24+0.24)-1058)) -> 535 | F24: 3.73 | G24: =IF(F24=0,0,IF(F24>4.41,INT(887.99*SQRT(F24)-1264.5),INT((F24-1.91)*200+100.5))) -> 464 | H24: 21.33 | I24: =IF(H24=0,0,INT(126*SQRT(H24)-245.5)) -> 336 | J24: 6.86 | K24: =IF(J24=0,0,INT(303.73*SQRT(J24)-337.5)) -> 458 | L24: 223.84 | M24: 3,43,84 | N24: =IF(L24=0,0,INT(276912/L24-738.5)) -> 498 | O24: =SUM(E24,G24,I24,K24,N24) -> 2291
A25: 2 | B25: Daniel | C25: Sleiman D. | D25: 9.2 | E25: 569 | F25: 3.83 | G25: 484 | H25: 29.37 | I25: 437 | J25: 5.13 | K25: 350 | L25: 233.07 | M25: 3,53,07 | N25: 449 | O25: 2289
A26: 3 | B26: Benedict | C26: Erp B.W. | D26: 9.7 | E26: 487 | F26: 3.4 | G26: 398 | H26: 26.38 | I26: 401 | J26: 5.86 | K26: 397 | L26: 226.13 | M26: 3,46,13 | N26: 486 | O26: 2169
A27: 4 | B27: Jules | C27: Roelfsema | D27: 9.9 | E27: 457 | F27: 3.42 | G27: 402 | H27: 27.61 | I27: 416 | J27: 6.39 | K27: 430 | L27: 233.16 | M27: 3,53,16 | N27: 449 | O27: 2154
A28: 5 | B28: Noah | C28: Oling N. | D28: 9.9 | E28: 457 | F28: 3.5 | G28: 418 | H28: 32.07 | I28: 468 | J28: 5.56 | K28: 378 | L28: 236.8 | M28: 3,56,80 | N28: 430 | O28: 2151
A29: 6 | B29: Christiaan | C29: Zandstra C.W. | D29: 10 | E29: 442 | F29: 3.3 | G29: 378 | H29: 25.57 | I29: 391 | J29: 6.45 | K29: 433 | L29: 223.93 | M29: 3,43,93 | N29: 498 | O29: 2142
A30: 7 | B30: Yannick | C30: Vollaard Y. | D30: 9.8 | E30: 472 | F30: 3.53 | G30: 424 | H30: 22.87 | I30: 357 | J30: 5.41 | K30: 368 | L30: 221.19 | M30: 3,41,19 | N30: 513 | O30: 2134
A31: 8 | B31: Adriaan | C31: Fornerod A. | D31: 9.9 | E31: 457 | F31: 3.48 | G31: 414 | H31: 24.59 | I31: 379 | J31: 6.77 | K31: 452 | L31: 243.13 | M31: 4,03,13 | N31: 400 | O31: 2102
A32: 9 | B32: Max | C32: Engelsman M. | D32: 10.1 | E32: 427 | F32: 3.22 | G32: 362 | H32: 21.28 | I32: 335 | J32: 6.56 | K32: 440 | L32: 248.3 | M32: 4,08,30 | N32: 376 | O32: 1940
A33: 10 | B33: Lucas | C33: Weber L.G. | D33: 10.8 | E33: 333 | F33: 3.07 | G33: 332 | H33: 24.76 | I33: 381 | J33: 4.7 | K33: 320 | L33: 247.9 | M33: 4,07,90 | N33: 378 | O33: 1744
A34: 11 | B34: Julian | C34: Bik J.S. | D34: 10 | E34: 442 | F34: 3.12 | G34: 342 | H34: 15.8 | I34: 255 | J34: 5.59 | K34: 380 | L34: 261.66 | M34: 4,21,66 | N34: 319 | O34: 1738
A35: 12 | B35: Rutger | C35: Laar R. van de | D35: 10.9 | E35: 321 | F35: 2.9 | G35: 298 | H35: 17.75 | I35: 285 | J35: 5.01 | K35: 342 | L35: 241.1 | M35: 4,01,10 | N35: 410 | O35: 1656
A36: 13 | B36: Sietse | C36: Zwart S.T. | D36: 11.3 | E36: 273 | F36: 2.9 | G36: 298 | H36: 20.93 | I36: 330 | J36: 4.5 | K36: 306 | L36: 242.13 | M36: 4,02,13 | N36: 405 | O36: 1612
A37: 14 | B37: Ole | C37: Jong O.L. de | D37: 11.5 | E37: 250 | F37: 2.87 | G37: 292 | H37: 21.18 | I37: 334 | J37: 4.65 | K37: 317 | L37: 258.7 | M37: 4,18,70 | N37: 331 | O37: 1524
A38: 15 | B38: Jonathan | C38: Winkel J.A.D. | D38: 11.7 | E38: 228 | F38: 2.53 | G38: 224 | H38: 13.2 | I38: 212 | J38: 5.06 | K38: 345 | L38: 294.4 | M38: 4,54,40 | N38: 202 | O38: 1211
A39: 16 | B39: Bram | C39: Apeldoorn B. | D39: 14.2 | E39: 6 | F39: 3.27 | G39: 372 | H39: 11.35 | I39: 178 | J39: 2.35 | K39: 128 | L39: 313.95 | M39: 5,13,95 | N39: 143 | O39: 827
A41: Jongens D junioren
A42: Plaats | B42: voornaam | C42: achternaam | D42: 80m | E42: pnt | F42: ver | G42: pnt | H42: speer | I42: pnt | J42: 80mh | K42: pnt | L42: hoog | M42: pnt | N42: kogel | O42: pnt | Q42: 1000m | R42: pnt | S42: tot pnt
A43: 1 | B43: Lex | C43: Honschoten L. van | D43: 10.8 | E43: =IF(D43=0,0,INT(19933/(D43+0.24)-1193)) -> 612 | F43: 4.75 | G43: =IF(F43=0,0,IF(F43>4.41,INT(887.99*SQRT(F43)-1364.5),INT((F43-1.91)*200+0.5))) -> 570 | H43: 26.09 | I43: =IF(H43=0,0,INT(170.39*SQRT(H43)-437.5)) -> 432 | J43: 15.4 | K43: =IF(J43=0,0,INT(18100/(J43+0.24)-804.5)) -> 352 | L43: 1.35 | M43: =IF(L43=0,0,IF(L43>1.35,INT(1977.53*SQRT(L43)-1798.5),INT((L43-0.67)*733.33333+0.7))) -> 499 | N43: 8.11 | O43: =IF(N43=0,0,INT(303.73*SQRT(N43)-437.5)) -> 427 | P43: 192.18 | Q43: 3,12,18 | R43: =IF(P43=0,0,INT(276912/P43-838.5)) -> 602 | S43: =SUM(E43,G43,I43,K43,M43,O43,R43) -> 3494
A44: 2 | B44: Michel | C44: Laanbroek M.A. | D44: 11.8 | E44: 462 | F44: 3.9 | G44: 398 | H44: 16.31 | I44: 250 | J44: 17.9 | K44: 193 | L44: 1.2 | M44: 389 | N44: 7.04 | O44: 368 | P44: 238.05 | Q44: 3,58,05 | R44: 324 | S44: 2384
A45: 3 | B45: Jelmer | C45: Graaf de J.S. | D45: 0 | E45: 0 | F45: 4.12 | G45: 442 | H45: 26.89 | I45: 446 | J45: 15.4 | K45: 352 | L45: 1.1 | M45: 316 | N45: 7.29 | O45: 382 | P45: 224.35 | Q45: 3,44,35 | R45: 395 | S45: 2333
A46: 4 | B46: Robin | C46: Staal R. | D46: 14 | E46: 206 | F46: 3.28 | G46: 274 | H46: 20.68 | I46: 337 | J46: 19.1 | K46: 131 | L46: 1 | M46: 242 | N46: 4.81 | O46: 228 | P46: 239.17 | Q46: 3,59,17 | R46: 319 | S46: 1737
A47: 5 | B47: Martijn | C47: Laar M. van de | D47: 13.5 | E47: 257 | F47: 3.41 | G47: 300 | H47: 12.36 | I47: 161 | J47: 19.9 | K47: 94 | L47: 1.1 | M47: 316 | N47: 4.45 | O47: 203 | P47: 256.41 | Q47: 4,16,41 | R47: 241 | S47: 1572
A48: 6 | B48: Rik | C48: Apeldoorn R. | D48: 14.1 | E48: 197 | F48: 2.98 | G48: 214 | H48: 15.11 | I48: 224 | J48: 19.4 | K48: 117 | L48: 0.9 | M48: 169 | N48: 6.1 | O48: 312 | P48: 272.45 | Q48: 4,32,45 | R48: 177 | S48: 1410
A49: 7 | B49: Alfredo | C49: Dirksen A.E.A. | D49: 15.6 | E49: 65 | F49: 2.85 | G49: 188 | H49: 14.64 | I49: 214 | J49: 28.1 | K49: 0 | L49: 0.95 | M49: 206 | N49: 0 | O49: 0 | P49: 0 | Q49: 0 | R49: 0 | S49: 673
A51: Jongens C | R51: minuten
A52: Plaats | B52: voornaam | C52: achternaam | D52: 100m | E52: pnt | F52: ver | G52: pnt | H52: hoog | I52: pnt | J52: speer | K52: pnt | L52: 100mh | M52: pnt | N52: kogel | O52: pnt | P52: discus | Q52: pnt | S52: 1000m | T52: pnt | U52: tot pnt
A53: 1 | B53: Jos | C53: Hoogewerf J.D. | D53: 12.2 | E53: =IF(D53=0,0,INT(24450/(D53+0.24)-1212)) -> 753 | F53: 6.06 | G53: =IF(F53=0,0,IF(F53>4.41,INT(887.99*SQRT(F53)-1364.5),INT((F53-1.91)*200+0.5))) -> 821 | H53: 1.7 | I53: =IF(H53=0,0,IF(H53>1.35,INT(1977.53*SQRT(H53)-1798.5),INT((H53-0.67)*733.33333+0.7))) -> 779 | J53: 44.58 | K53: =IF(J53=0,0,INT(170.39*SQRT(J53)-437.5)) -> 700 | L53: 14.1 | M53: =IF(L53=0,0,INT(21800/(L53+0.24)-727)) -> 793 | N53: 10.8 | O53: =IF(N53=0,0,INT(303.73*SQRT(N53)-437.5)) -> 560 | P53: 39.03 | Q53: =IF(P53=0,0,INT(166.79*SQRT(P53)-438.5)) -> 603 | R53: 183.5 | S53: 3,03,50 | T53: =IF(R53=0,0,INT(276912/R53-838.5)) -> 670 | U53: =SUM(E53,G53,I53,K53,M53,O53,Q53,T53) -> 5679
A54: 2 | B54: Sil | C54: Negenman S. | D54: 11.7 | E54: 835 | F54: 5.81 | G54: 775 | H54: 1.6 | I54: 702 | J54: 38.93 | K54: 625 | L54: 13.9 | M54: 814 | N54: 12.29 | O54: 627 | P54: 28 | Q54: 444 | R54: 184.81 | S54: 3,04,81 | T54: 659 | U54: 5481
A55: 3 | B55: Igor | C55: Uiterwijk I. | D55: 12.4 | E55: 722 | F55: 5.73 | G55: 761 | H55: 1.6 | I55: 702 | J55: 31.97 | K55: 525 | L55: 15.1 | M55: 694 | N55: 9.11 | O55: 479 | P55: 29.84 | Q55: 472 | R55: 211.22 | S55: 3,31,22 | T55: 472 | U55: 4827
A56: 4 | B56: Mika | C56: Taag M. | D56: 13 | E56: 634 | F56: 5.21 | G56: 662 | H56: 1.5 | I56: 623 | J56: 9.7 | K56: 93 | L56: 15.1 | M56: 694 | N56: 9.38 | O56: 492 | P56: 33.19 | Q56: 522 | R56: 205.81 | S56: 3,25,81 | T56: 506 | U56: 4226
A57: 5 | B57: Tijn | C57: Pronk T.M. | D57: 13.6 | E57: 554 | F57: 5.01 | G57: 623 | H57: 1.35 | I57: 499 | J57: 26.41 | K57: 438 | L57: 18.6 | M57: 430 | N57: 8.8 | O57: 463 | P57: 30.8 | Q57: 487 | R57: 200.32 | S57: 3,20,32 | T57: 543 | U57: 4037
A58: 6 | B58: Sjoerd | C58: Sel S van der | D58: 13.5 | E58: 567 | F58: 4.5 | G58: 519 | H58: 1.3 | I58: 462 | J58: 15.03 | K58: 223 | L58: 21.5 | M58: 275 | N58: 8.43 | O58: 444 | P58: 23.63 | Q58: 372 | R58: 209.43 | S58: 3,29,43 | T58: 483 | U58: 3345
A59: 7 | B59: Raphael | C59: Winkel | D59: 13.9 | E59: 517 | F59: 4.33 | G59: 484 | H59: 1.35 | I59: 499 | J59: 13.37 | K59: 185 | L59: 20.5 | M59: 324 | N59: 8.1 | O59: 426 | P59: 19.61 | Q59: 300 | R59: 235.28 | S59: 3,55,28 | T59: 338 | U59: 3073
A60: 8 | B60: Silvan | C60: Wolff | D60: 13.7 | E60: 541 | F60: 4.29 | G60: 476 | H60: 1.3 | I60: 462 | J60: 13.36 | K60: 185 | L60: 20.8 | M60: 309 | N60: 5.88 | O60: 299 | P60: 19.17 | Q60: 291 | R60: 214.88 | S60: 3,34,88 | T60: 450 | U60: 3013
A61: 9 | B61: Luuk | C61: Meesters L.T.W. | D61: 13.1 | E61: 620 | F61: 4.31 | G61: 480 | H61: 1.3 | I61: 462 | J61: 19.66 | K61: 318 | L61: 23.3 | M61: 199 | N61: 9.51 | O61: 499 | P61: 23.56 | Q61: 371 | R61: 0 | S61: 0 | T61: 0 | U61: 2949
A62: 10 | B62: Ids | C62: Hengstmangers I.R. | D62: 14.1 | E62: 493 | F62: 4.26 | G62: 470 | H62: 1.35 | I62: 499 | J62: 14.85 | K62: 219 | L62: 21.6 | M62: 271 | N62: 6.23 | O62: 320 | P62: 18.23 | Q62: 273 | R62: 230.03 | S62: 3,50,03 | T62: 365 | U62: 2910
A63: 11 | B63: Joep | C63: Noordhoek | D63: 15.4 | E63: 351 | F63: 3.81 | G63: 380 | H63: 1.3 | I63: 462 | J63: 20.59 | K63: 335 | L63: 0 | M63: 0 | N63: 8.22 | O63: 433 | P63: 25.62 | Q63: 405 | R63: 253.8 | S63: 4,13,80 | T63: 252 | U63: 2618
A64: 12 | B64: Martijn | C64: Beekhuis M.D. | D64: 0 | E64: 0 | F64: 0 | G64: 0 | H64: 0 | I64: 0 | J64: 35.47 | K64: 577 | L64: 17.8 | M64: 481 | N64: 0 | O64: 0 | P64: 37.2 | Q64: 578 | R64: 214.78 | S64: 3,34,78 | T64: 450 | U64: 2086
A65: 13 | B65: Lucas | C65: Tuinier L.B. | D65: 16.4 | E65: 257 | F65: 3.3 | G65: 278 | H65: 1.2 | I65: 389 | J65: 14.99 | K65: 222 | L65: 26.2 | M65: 97 | N65: 6.21 | O65: 319 | P65: 16.11 | Q65: 230 | R65: 285.72 | S65: 4,45,72 | T65: 130 | U65: 1922
A67: Jongens B | V67: minuten
A68: Plaats | B68: voornaam | C68: achternaam | D68: 100m | E68: pnt | F68: 400m | G68: pnt | H68: ver | I68: pnt | J68: hoog | K68: pnt | L68: kogel | M68: pnt | N68: 110mh | O68: pnt | P68: pols | Q68: pnt | R68: discus | S68: pnt | T68: speer | U68: pnt | W68: 1500m | X68: pnt | Y68: tot pnt
A69: 1 | B69: Martijn | C69: Hoogewerf | D69: 12 | E69: =IF(D69=0,0,INT(29550/(D69+0.24)-1881.5)) -> 532 | G69: =IF(F69=0,0,INT(111960/(F69+0.14)-1433.5)) -> 0 | H69: 6.17 | I69: =IF(H69=0,0,INT(1094.4*SQRT(H69)-2075.3)) -> 643 | J69: 1.8 | K69: =IF(J69=0,0,INT(2440*SQRT(J69)-2593.5)) -> 680 | L69: 12.61 | M69: =IF(L69=0,0,INT(462.5*SQRT(L69)-1001.8)) -> 640 | N69: 15.8 | O69: =IF(N69=0,0,INT(23955.3/(N69+0.24)-747.9)) -> 745 | Q69: =IF(P69=0,0,INT(1040*SQRT(P69)-1272.5)) -> 0 | R69: 37.93 | S69: =IF(R69=0,0,INT(249.8*SQRT(R69)-893.5)) -> 644 | T69: 50.29 | U69: =IF(T69=0,0,INT(190.2*SQRT(T69)-711.3)) -> 637 | V69: 302.67 | W69: 5,02,76 | X69: =IF(V69=0,0,INT(489971.4/V69-1224.7)) -> 394 | Y69: =SUM(E69,G69,I69,K69,M69,O69,Q69,S69,U69,X69) -> 4915
A70: 2 | B70: Siebe | C70: Koot | D70: 12.9 | E70: 367 | G70: 0 | H70: 4.58 | I70: 266 | J70: 0 | K70: 0 | L70: 9.13 | M70: 395 | N70: 20.7 | O70: 396 | Q70: 0 | R70: 20.25 | S70: 230 | T70: 31.23 | U70: 0 | V70: 325.99 | W70: 5,25,99 | X70: 278 | Y70: 1932
A72: Jongens A | V72: minuten
A73: Plaats | B73: voornaam | C73: achternaam | D73: 100m | E73: pnt | F73: ver | G73: pnt | H73: hoog | I73: pnt | J73: kogel | K73: pnt | L73: 400m | M73: pnt | N73: 110mh | O73: pnt | P73: pols | Q73: pnt | R73: discus | S73: pnt | T73: speer | U73: pnt | W73: 1500m | X73: pnt | Y73: tot pnt
A74: 1 | B74: Niels | C74: Lambers | D74: 11.8 | E74: =IF(D74=0,0,INT(29550/(D74+0.24)-1881.5)) -> 572 | F74: 5.3 | G74: =IF(F74=0,0,INT(1094.4*SQRT(F74)-2075.3)) -> 444 | H74: 1.6 | I74: =IF(H74=0,0,INT(2440*SQRT(H74)-2593.5)) -> 492 | J74: 10.77 | K74: =IF(J74=0,0,INT(462.5*SQRT(J74)-1001.8)) -> 516 | L74: 57.2 | M74: =IF(L74=0,0,INT(111960/(L74+0.14)-1433.5)) -> 519 | N74: 19.2 | O74: =IF(N74=0,0,INT(23955.3/(N74+0.24)-747.9)) -> 484 | Q74: =IF(P74=0,0,INT(1040*SQRT(P74)-1272.5)) -> 0 | R74: 36 | S74: =IF(R74=0,0,INT(249.8*SQRT(R74)-893.5)) -> 605 | T74: 34.82 | U74: =IF(T74=0,0,INT(190.2*SQRT(T74)-711.3)) -> 411 | V74: 326.85 | W74: 5,26,85 | X74: =IF(V74=0,0,INT(489971.4/V74-1224.7)) -> 274 | Y74: =SUM(E74,M74,G74,I74,K74,O74,Q74,S74,U74,X74) -> 4317
A75: 2 | B75: Job | C75: Wiltink | D75: 11.5 | E75: 635 | F75: 5.5 | G75: 491 | H75: 1.6 | I75: 492 | J75: 8.99 | K75: 384 | L75: 51.8 | M75: 722 | N75: 19.3 | O75: 478 | Q75: 0 | R75: 22.33 | S75: 286 | T75: 25.16 | U75: 242 | V75: 301.47 | W75: 5,01,47 | X75: =IF(V75=0,0,INT(489971.4/V75-1224.7)) -> 400 | Y75: 4130
A77: Heren | N77: minuten
A78: Plaats | B78: voornaam | C78: achternaam | D78: 100m | E78: pnt | F78: ver | G78: pnt | H78: hoog | I78: pnt | J78: kogel | K78: pnt | L78: Speer | M78: pnt | O78: 1000m | P78: pnt | Q78: tot pnt
A80: 1 | B80: Hidde | C80: Koot | D80: 12.7 | E80: =IF(D80=0,0,INT(29550/(D80+0.24)-1881.5)) -> 402 | F80: 5.73 | G80: =IF(F80=0,0,INT(1094.4*SQRT(F80)-2075.3)) -> 544 | H80: 1.55 | I80: =IF(H80=0,0,INT(2440*SQRT(H80)-2593.5)) -> 444 | J80: 7.55 | K80: =IF(J80=0,0,INT(462.5*SQRT(J80)-1001.8)) -> 269 | L80: 34.11 | M80: =IF(L80=0,0,INT(190.2*SQRT(L80)-711.3)) -> 399 | N80: 170.58 | O80: 2,50,58 | P80: =IF(N80=0,0,INT(317523.3/N80-1285)) -> 576 | Q80: =SUM(E80,G80,I80,K80,M80,P80) -> 2634
A81: 2 | B81: Thijmen | C81: Wiltink | D81: 12.8 | E81: 384 | F81: 5.3 | G81: 444 | H81: 1.55 | I81: 444 | J81: 9.38 | K81: 414 | L81: 34.37 | M81: 403 | N81: 193.2 | O81: 3,13,20 | P81: 358 | Q81: 2447
A82: 3 | B82: Jasper | C82: Smit | D82: 12.6 | E82: 419 | F82: 6.46 | G82: 706 | H82: 1.45 | I82: 344 | J82: 8.08 | K82: 312 | L82: 36.03 | M82: 430 | N82: 218.83 | O82: 3,38,83 | P82: 166 | Q82: 2377
A83: 4 | B83: Matthijs | C83: Phernambuque | D83: 13.8 | E83: 223 | F83: 4.67 | G83: 289 | H83: 1.6 | I83: 492 | J83: 7.3 | K83: 247 | L83: 35.95 | M83: 429 | N83: 224.96 | O83: 3,44,96 | P83: 126 | Q83: 1806
A84: 5 | B84: Ruben | C84: Holst | D84: 14.1 | E84: 179 | F84: 4.17 | G84: 159 | H84: 0 | I84: 0 | J84: 7.34 | K84: 251 | L84: 28.55 | M84: 304 | N84: 223.43 | O84: 3,43,43 | P84: 136 | Q84: 1029
A85: 6 | B85: Remco | C85: Smit | D85: 12.9 | E85: 367 | F85: 0 | G85: 0 | I85: 0 | J85: 0 | K85: 0 | L85: 32.38 | M85: 371 | N85: 0 | O85: 0 | P85: 0 | Q85: 738
A86: 7 | B86: Johan | C86: Neve | E86: 0 | F86: 0 | G86: 0 | H86: 0 | I86: 0 | J86: 0 | K86: 0 | L86: 0 | M86: 0 | N86: 199.66 | O86: 3,19,66 | P86: 305 | Q86: 305
A88: Meisjes Pupillen MINI | L88: in minuten
A89: Plaats | B89: Voonaam | C89: Achternaam | D89: 40m | E89: pnt | F89: ver | G89: pnt | H89: bal | I89: pnt | J89: kogel | K89: pnt | M89: 600m | N89: pnt | O89: pnt tot
A90: 1 | B90: Linde | C90: Bürmann | D90: 8.4 | E90: =IF(D90=0,0,INT(10834/(D90+0.24)-996)) -> 257 | F90: 2.48 | G90: =IF(F90=0,0,IF(F90>4.41,INT(887.99*SQRT(F90)-1264.5),INT((F90-1.91)*200+100.5))) -> 214 | H90: 11.64 | I90: =IF(H90=0,0,INT(126*SQRT(H90)-245.5)) -> 184 | J90: 3.8 | K90: =IF(J90=0,0,INT(303.73*SQRT(J90)-337.5)) -> 254 | L90: 158.94 | M90: 2,38,94 | N90: =IF(L90=0,0,INT(160470.5/L90-811.35)) -> 198 | O90: =SUM(E90,G90,I90,K90,N90) -> 1107
A91: 2 | B91: Helena | C91: Heusinkveld | D91: 9.1 | E91: =IF(D91=0,0,INT(10834/(D91+0.24)-996)) -> 163 | F91: 2.14 | G91: =IF(F91=0,0,IF(F91>4.41,INT(887.99*SQRT(F91)-1264.5),INT((F91-1.91)*200+100.5))) -> 146 | H91: 12.08 | I91: =IF(H91=0,0,INT(126*SQRT(H91)-245.5)) -> 192 | J91: 2.1 | K91: =IF(J91=0,0,INT(303.73*SQRT(J91)-337.5)) -> 102 | L91: 170.34 | M91: 2,50,34 | N91: =IF(L91=0,0,INT(160470.5/L91-811.35)) -> 130 | O91: =SUM(E91,G91,I91,K91,N91) -> 733
A92: 3 | B92: Saar | C92: Griffioen | D92: 9.4 | E92: =IF(D92=0,0,INT(10834/(D92+0.24)-996)) -> 127 | F92: 1.92 | G92: =IF(F92=0,0,IF(F92>4.41,INT(887.99*SQRT(F92)-1264.5),INT((F92-1.91)*200+100.5))) -> 102 | H92: 6.95 | I92: =IF(H92=0,0,INT(126*SQRT(H92)-245.5)) -> 86 | J92: 2.89 | K92: =IF(J92=0,0,INT(303.73*SQRT(J92)-337.5)) -> 178 | L92: 190.81 | M92: 3,10,81 | N92: =IF(L92=0,0,INT(160470.5/L92-811.35)) -> 29 | O92: =SUM(E92,G92,I92,K92,N92) -> 522
A94: Meisjes Pupillen C | L94: in minuten
A95: Plaats | B95: Achternaam | C95: Voornaam | D95: 40m | E95: pnt | F95: ver | G95: pnt | H95: bal | I95: pnt | J95: kogel | K95: pnt | M95: 600m | N95: pnt | O95: pnt tot
A96: 1 | B96: Teuntje | C96: Mollee T. | D96: 7.3 | E96: =IF(D96=0,0,INT(10834/(D96+0.24)-996)) -> 440 | F96: 3 | G96: =IF(F96=0,0,IF(F96>4.41,INT(887.99*SQRT(F96)-1264.5),INT((F96-1.91)*200+100.5))) -> 318 | H96: 14.93 | I96: =IF(H96=0,0,INT(126*SQRT(H96)-245.5)) -> 241 | J96: 3.05 | K96: =IF(J96=0,0,INT(303.73*SQRT(J96)-337.5)) -> 192 | L96: 136.01 | M96: 2,16,01 | N96: =IF(L96=0,0,INT(160470.5/L96-811.35)) -> 368 | O96: =SUM(E96,G96,I96,K96,N96) -> 1559
A97: 2 | B97: Feline | C97: de Gier | D97: 8 | E97: =IF(D97=0,0,INT(10834/(D97+0.24)-996)) -> 318 | F97: 2.45 | G97: =IF(F97=0,0,IF(F97>4.41,INT(887.99*SQRT(F97)-1264.5),INT((F97-1.91)*200+100.5))) -> 208 | H97: 17.63 | I97: =IF(H97=0,0,INT(126*SQRT(H97)-245.5)) -> 283 | J97: 2.56 | K97: =IF(J97=0,0,INT(303.73*SQRT(J97)-337.5)) -> 148 | L97: 154.14 | M97: 2,34,14 | N97: =IF(L97=0,0,INT(160470.5/L97-811.35)) -> 229 | O97: =SUM(E97,G97,I97,K97,N97) -> 1186
A98: 3 | B98: Veerle | C98: Zwart V.M. | D98: 8.3 | E98: =IF(D98=0,0,INT(10834/(D98+0.24)-996)) -> 272 | F98: 2.42 | G98: =IF(F98=0,0,IF(F98>4.41,INT(887.99*SQRT(F98)-1264.5),INT((F98-1.91)*200+100.5))) -> 202 | H98: 9.51 | I98: =IF(H98=0,0,INT(126*SQRT(H98)-245.5)) -> 143 | J98: 2.69 | K98: =IF(J98=0,0,INT(303.73*SQRT(J98)-337.5)) -> 160 | L98: 158.43 | M98: 2,38,43 | N98: =IF(L98=0,0,INT(160470.5/L98-811.35)) -> 201 | O98: =SUM(E98,G98,I98,K98,N98) -> 978
A100: Meisjes Pupillen B | L100: minuten
A101: Plaats | B101: Voornaam | C101: Achternaam | D101: 40m | E101: pnt | F101: ver | G101: pnt | H101: bal | I101: pnt | J101: kogel | K101: pnt | M101: 1000m | N101: pnt | O101: pnt tot
A102: 1 | B102: Nigella | C102: Negenman N.M. | D102: 6.6 | E102: =IF(D102=0,0,INT(10834/(D102+0.24)-996)) -> 587 | F102: 3.6 | G102: =IF(F102=0,0,IF(F102>4.41,INT(887.99*SQRT(F102)-1264.5),INT((F102-1.91)*200+100.5))) -> 438 | H102: 20.81 | I102: =IF(H102=0,0,INT(126*SQRT(H102)-245.5)) -> 329 | J102: 5.08 | K102: =IF(J102=0,0,INT(303.73*SQRT(J102)-337.5)) -> 347 | L102: 215.39 | M102: 3,35,39 | N102: =IF(L102=0,0,INT(276912/L102-738.5)) -> 547 | O102: =SUM(E102,G102,I102,K102,N102) -> 2248
A103: 2 | B103: Feline | C103: Boissevain F.E. | D103: 7.2 | E103: =IF(D103=0,0,INT(10834/(D103+0.24)-996)) -> 460 | F103: 3.05 | G103: =IF(F103=0,0,IF(F103>4.41,INT(887.99*SQRT(F103)-1264.5),INT((F103-1.91)*200+100.5))) -> 328 | H103: 15.6 | I103: =IF(H103=0,0,INT(126*SQRT(H103)-245.5)) -> 252 | J103: 4.03 | K103: =IF(J103=0,0,INT(303.73*SQRT(J103)-337.5)) -> 272 | L103: 281.35 | M103: 4,41,35 | N103: =IF(L103=0,0,INT(276912/L103-738.5)) -> 245 | O103: =SUM(E103,G103,I103,K103,N103) -> 1557
A104: 3 | B104: Danielle | C104: Laanbroek D.M. | D104: 7.5 | E104: =IF(D104=0,0,INT(10834/(D104+0.24)-996)) -> 403 | F104: 2.74 | G104: =IF(F104=0,0,IF(F104>4.41,INT(887.99*SQRT(F104)-1264.5),INT((F104-1.91)*200+100.5))) -> 266 | H104: 13.13 | I104: =IF(H104=0,0,INT(126*SQRT(H104)-245.5)) -> 211 | J104: 3.48 | K104: =IF(J104=0,0,INT(303.73*SQRT(J104)-337.5)) -> 229 | L104: 277.2 | M104: 4,37,20 | N104: =IF(L104=0,0,INT(276912/L104-738.5)) -> 260 | O104: =SUM(E104,G104,I104,K104,N104) -> 1369
A105: 4 | B105: Stella | C105: Kuijs | D105: 7.1 | E105: =IF(D105=0,0,INT(10834/(D105+0.24)-996)) -> 480 | F105: 3.15 | G105: =IF(F105=0,0,IF(F105>4.41,INT(887.99*SQRT(F105)-1264.5),INT((F105-1.91)*200+100.5))) -> 348 | H105: 10.72 | I105: =IF(H105=0,0,INT(126*SQRT(H105)-245.5)) -> 167 | J105: 3.69 | K105: =IF(J105=0,0,INT(303.73*SQRT(J105)-337.5)) -> 245 | L105: 322.9 | M105: 5,22,90 | N105: =IF(L105=0,0,INT(276912/L105-738.5)) -> 119 | O105: =SUM(E105,G105,I105,K105,N105) -> 1359
A107: Meisjes Pupillen A
A108: Plaats | B108: Voornaam | C108: Achternaam | D108: 60m | E108: pnt | F108: ver | G108: pnt | H108: bal | I108: pnt | J108: kogel | K108: pnt | L108: minuten | M108: 1000m | N108: pnt | O108: pnt tot
A109: 1 | B109: Eva | C109: Hoogewerf E.M. | D109: 9.4 | E109: =IF(D109=0,0,INT(15365/(D109+0.24)-1058)) -> 535 | F109: 4.02 | G109: =IF(F109=0,0,IF(F109>4.41,INT(887.99*SQRT(F109)-1264.5),INT((F109-1.91)*200+100.5))) -> 522 | H109: 29.52 | I109: =IF(H109=0,0,INT(126*SQRT(H109)-245.5)) -> 439 | J109: 7.99 | K109: =IF(J109=0,0,INT(303.73*SQRT(J109)-337.5)) -> 521 | L109: 223.44 | M109: 3,43,44 | N109: =IF(L109=0,0,INT(276912/L109-738.5)) -> 500 | O109: =SUM(E109,G109,I109,K109,N109) -> 2517
A110: 2 | B110: Rochelle | C110: Negenman R.M. | D110: 9.5 | E110: 519 | F110: 3.75 | G110: 468 | H110: 30.57 | I110: 451 | J110: 7.16 | K110: 475 | L110: 231.85 | M110: 3,51,85 | N110: 455 | O110: 2368
A111: 3 | B111: Sophie | C111: Ekeris S.M. van | D111: 9.5 | E111: 519 | F111: 3.77 | G111: 472 | H111: 26.87 | I111: 407 | J111: 7.45 | K111: 491 | L111: 244.09 | M111: 4,04,09 | N111: 395 | O111: 2284
A112: 4 | B112: Saskia | C112: Mens S. | D112: 9.9 | E112: 457 | F112: 3.8 | G112: 478 | H112: 20.43 | I112: 324 | J112: 5.49 | K112: 374 | L112: 232.18 | M112: 3,52,18 | N112: 454 | O112: 2087
A113: 5 | B113: Nikki | C113: Ravelli N. | D113: 9.5 | E113: 519 | F113: 3.59 | G113: 436 | H113: 27.74 | I113: 418 | J113: 6.02 | K113: 407 | L113: 274.83 | M113: 4,34,83 | N113: 269 | O113: 2049
A114: 6 | B114: Isabel | C114: Seijlhouwer | D114: 9.5 | E114: 519 | F114: 3.5 | G114: 418 | H114: 19.95 | I114: 317 | J114: 4.55 | K114: 310 | L114: 228.18 | M114: 3,48,18 | N114: 475 | O114: 2039
A115: 7 | B115: Meike | C115: Boer M.L. de | D115: 10.2 | E115: 413 | F115: 3.53 | G115: 424 | H115: 19.21 | I115: 306 | J115: 4.96 | K115: 338 | L115: 264.28 | M115: 4,24,28 | N115: 309 | O115: 1790
A116: 8 | B116: Nathalie | C116: Mil N. van | D116: 11 | E116: 308 | F116: 3.27 | G116: 372 | H116: 18.97 | I116: 303 | J116: 5.41 | K116: 368 | L116: 265.58 | M116: 4,25,58 | N116: 304 | O116: 1655
A117: 9 | B117: Yara | C117: Zandstra Y.C.H. | D117: 11.3 | E117: 273 | F117: 3.1 | G117: 338 | H117: 20.1 | I117: 319 | J117: 5.41 | K117: 368 | L117: 257.51 | M117: 4,17,51 | N117: 336 | O117: 1634
A118: 10 | B118: Mette | C118: Borsboom M. | D118: 10.1 | E118: 427 | F118: 3.64 | G118: 446 | H118: 19.44 | I118: 310 | J118: 5.75 | K118: 390 | L118: 0 | M118: 0 | N118: 0 | O118: 1573
A119: 11 | B119: Lotte | C119: Gabel L.E. | D119: 10.5 | E119: 372 | F119: 3.08 | G119: 334 | H119: 13.83 | I119: 223 | J119: 4.64 | K119: 316 | L119: 301.03 | M119: 5,01,03 | N119: 181 | O119: 1426
A121: Meisjes D | O121: In minuten
A122: Plaats | B122: voornaam | C122: achternaam | D122: ver | E122: pnt | F122: speer | G122: pnt | H122: 60mh | I122: pnt | J122: hoog | K122: pnt | L122: kogel | M122: pnt | O122: 600m | P122: pnt | Q122: tot pnt
A123: 1 | B123: Robina | C123: Negenman R. | D123: 4.52 | E123: =IF(D123=0,0,IF(D123>4.41,INT(887.99*SQRT(D123)-1364.5),INT((D123-1.91)*200+0.5))) -> 523 | F123: 34.98 | G123: =IF(F123=0,0,INT(170.39*SQRT(F123)-437.5)) -> 570 | H123: 9.5 | I123: =IF(H123=0,0,INT(14050/(H123+0.24)-795.5)) -> 647 | J123: 1.45 | K123: =IF(J123=0,0,IF(J123>1.35,INT(1977.53*SQRT(J123)-1798.5),INT((J123-0.67)*733.33333+0.7))) -> 582 | L123: 10.5 | M123: =IF(L123=0,0,INT(303.73*SQRT(L123)-437.5)) -> 546 | N123: 111.25 | O123: 1,51,25 | P123: =IF(N123=0,0,INT(160470.5/N123-911.35)) -> 531 | Q123: =SUM(P123+M123+K123+I123+G123,E123) -> 3399
A124: 2 | B124: Rosalie | C124: Breems R.I. | D124: 4.29 | E124: 476 | F124: 19.71 | G124: 318 | H124: 9.5 | I124: 647 | J124: 1.35 | K124: 499 | L124: 8.47 | M124: 446 | N124: 106.37 | O124: 1,46,37 | P124: 597 | Q124: 2983
A125: 3 | B125: Pleun | C125: Heerschop P.P. | D125: 4.34 | E125: 486 | F125: 21.6 | G125: 354 | H125: 11.3 | I125: 422 | J125: 1.25 | K125: 426 | L125: 8.95 | M125: 471 | N125: 116.58 | O125: 1,56,58 | P125: 465 | Q125: 2624
A126: 4 | B126: Nikki | C126: Taag N. | D126: 4.22 | E126: 462 | F126: 18.08 | G126: 287 | H126: 11.5 | I126: 401 | J126: 1.3 | K126: 462 | L126: 7.32 | M126: 384 | N126: 115.47 | O126: 1,55,47 | P126: 478 | Q126: 2474
A127: 5 | B127: Fay | C127: Witte F. | D127: 4.21 | E127: 460 | F127: 10.89 | G127: 124 | H127: 10.8 | I127: 477 | J127: 1.5 | K127: 623 | L127: 7.24 | M127: 379 | N127: 126.36 | O127: 2,06,36 | P127: 358 | Q127: 2421
A128: 6 | B128: Julia | C128: Arlotti J.M. | D128: 3.02 | E128: 222 | F128: 12.82 | G128: 172 | H128: 10.7 | I128: 488 | J128: 1.3 | K128: 462 | L128: 9.92 | M128: 519 | N128: 123.83 | O128: 2,03,83 | P128: 384 | Q128: 2247
A129: 7 | B129: Roos | C129: Schotanus R.M. | D129: 4.11 | E129: 440 | F129: 14.02 | G129: 200 | H129: 12.1 | I129: 343 | J129: 1.1 | K129: 316 | L129: 8.01 | M129: 422 | N129: 124.62 | O129: 2,04,62 | P129: 376 | Q129: 2097
A130: 8 | B130: Inez | C130: Bernard I. | D130: 3.63 | E130: 344 | F130: 14.23 | G130: 205 | H130: 13.5 | I130: 227 | J130: 1.3 | K130: 462 | L130: 7.39 | M130: 388 | N130: 118.05 | O130: 1,58,05 | P130: 447 | Q130: 2073
A131: 9 | B131: Julia | C131: Wit J.M. | D131: 3.69 | E131: 356 | F131: 16.69 | G131: 258 | H131: 13.4 | I131: 234 | J131: 1.25 | K131: 426 | L131: 6.71 | M131: 349 | N131: 131.53 | O131: 2,11,53 | P131: 308 | Q131: 1931
A132: 10 | B132: Lourdes | C132: Vos L. | D132: 3.19 | E132: 256 | F132: 15.01 | G132: 222 | H132: 14.1 | I132: 184 | J132: 1.05 | K132: 279 | L132: 7.55 | M132: 397 | N132: 126.83 | O132: 2,06,83 | P132: 353 | Q132: 1691
A133: 11 | B133: Charlotte | C133: Acker C.J. van | D133: 3.17 | E133: 252 | F133: 11.49 | G133: 140 | H133: 13.8 | I133: 205 | J133: 1.15 | K133: 352 | L133: 6.59 | M133: 342 | N133: 131.47 | O133: 2,11,47 | P133: 309 | Q133: 1600
A134: 12 | B134: Suzanne | C134: Boissevain S.A. | D134: 3.15 | E134: 248 | F134: 10.3 | G134: 109 | H134: 12.6 | I134: 298 | J134: 1.1 | K134: 316 | L134: 5.71 | M134: 288 | N134: 137.48 | O134: 2,17,48 | P134: 255 | Q134: 1514
A135: 13 | B135: Charlotte | C135: Veen | D135: 2.79 | E135: 176 | G135: 0 | H135: 14.4 | I135: 164 | J135: 1.15 | K135: 352 | L135: 5.59 | M135: 280 | N135: 154.15 | O135: 2,34,15 | P135: 129 | Q135: 1101
A136: 14 | B136: Donna | C136: Bosscha | D136: 3.56 | E136: 330 | G136: 0 | I136: 0 | K136: 0 | L136: 7.23 | M136: 379 | N136: 125.8 | O136: 2,05,80 | P136: 364 | Q136: 1073
A137: 15 | B137: Isabel | C137: Scheltema I. | D137: 0 | E137: 0 | F137: 15.22 | G137: 227 | H137: 12.8 | I137: 281 | J137: 1.25 | K137: 426 | L137: 0 | M137: 0 | N137: 0 | O137: 0 | P137: 0 | Q137: 934
A138: 16 | B138: Isa | C138: Dobber I.M. | D138: 2.74 | E138: 166 | F138: 9.29 | G138: 81 | H138: 17.3 | I138: 5 | J138: 1.05 | K138: 279 | L138: 4.63 | M138: 216 | N138: 148.84 | O138: 2,28,84 | P138: 166 | Q138: 913
A139: 17 | B139: Jesse | C139: Snel J. | D139: 0 | E139: 0 | F139: 16.31 | G139: 250 | H139: 13.1 | I139: 257 | J139: 0.95 | K139: 206 | L139: 0 | M139: 0 | N139: 0 | O139: 0 | P139: 0 | Q139: 713
A141: Meisjes C | R141: 600m
A142: Plaats | B142: voornaam | C142: achternaam | D142: 80m | E142: pnt | F142: 150m | G142: pnt | H142: hoog | I142: pnt | J142: kogel | K142: pnt | L142: 80mh | M142: pnt | N142: ver | O142: pnt | P142: speer | Q142: pnt | R142: minuten | S142: 600m | T142: pnt | U142: tot pnt
A143: 1 | B143: Joyce | C143: Kan van J.K. | D143: 10.6 | E143: =IF(D143=0,0,INT(19933/(D143+0.24)-1193)) -> 645 | F143: 20.4 | G143: =IF(F143=0,0,INT(36380/(F143+0.24)-1200)) -> 562 | H143: 1.25 | I143: =IF(H143=0,0,IF(H143>1.35,INT(1977.53*SQRT(H143)-1798.5),INT((H143-0.67)*733.33333+0.7))) -> 426 | J143: 7.86 | K143: =IF(J143=0,0,INT(303.73*SQRT(J143)-437.5)) -> 414 | L143: 13.2 | M143: =IF(L143=0,0,INT(18100/(L143+0.24)-804.5)) -> 542 | N143: 4.44 | O143: =IF(N143=0,0,IF(N143>4.41,INT(887.99*SQRT(N143)-1364.5),INT((N143-1.91)*200+0.5))) -> 506 | P143: 10.89 | Q143: =IF(P143=0,0,INT(170.39*SQRT(P143)-437.5)) -> 124 | R143: 114.16 | S143: 1,54,16 | T143: =IF(R143=0,0,INT(160470.5/R143-911.35)) -> 494 | U143: =SUM(E143,O143,I143,K143,M143,G143,Q143,T143) -> 3713
A144: 2 | B144: Yanika | C144: Einholz Y.M.M. | D144: 11.5 | E144: 504 | F144: 21.7 | G144: 458 | H144: 1.3 | I144: 462 | J144: 9.67 | K144: 506 | L144: 14.9 | M144: 391 | N144: 4.35 | O144: 488 | P144: 23.74 | Q144: 392 | R144: 124.98 | S144: 2,02,98 | T144: 372 | U144: 3573
A145: 3 | B145: Lydia | C145: Dijk L.R. van | D145: 11.5 | E145: 504 | F145: 21.7 | G145: 458 | H145: 1.3 | I145: 462 | J145: 7.32 | K145: 384 | L145: 13.9 | M145: 475 | N145: 4.4 | O145: 498 | P145: 13.12 | Q145: 179 | R145: 107.25 | S145: 1,47,25 | T145: 584 | U145: 3544
A146: 4 | B146: Jeannine | C146: Breems J.W. | D146: 11.5 | E146: 504 | F146: 22.4 | G146: 406 | H146: 1.2 | I146: 389 | J146: 7.83 | K146: 412 | L146: 16.3 | M146: 289 | N146: 4.13 | O146: 444 | P146: 13 | Q146: 176 | R146: 126.58 | S146: 2,06,58 | T146: 356 | U146: 2976
A147: 5 | B147: Marit | C147: Visser M. | D147: 12.4 | E147: 383 | F147: 24.4 | G147: 276 | H147: 1.2 | I147: 389 | J147: 6.08 | K147: 311 | L147: 16.2 | M147: 296 | N147: 3.5 | O147: 318 | P147: 12.19 | Q147: 157 | R147: 126.48 | S147: 2,06,48 | T147: 357 | U147: 2487
A148: 6 | B148: Sofia | C148: Bouwmeester S. | D148: 11.6 | E148: 490 | F148: 24.8 | G148: 252 | H148: 1.35 | I148: 499 | J148: 5.98 | K148: 305 | L148: 18.3 | M148: 171 | N148: 3.63 | O148: 344 | P148: 10.13 | Q148: 104 | R148: 148.14 | S148: 2,28,14 | T148: 171 | U148: 2336
A149: 7 | B149: Tessa | C149: Kwadijk T. | D149: 12.4 | E149: 383 | F149: 23.2 | G149: 352 | H149: 1.1 | I149: 316 | J149: 6.61 | K149: 343 | L149: 18.2 | M149: 177 | N149: 3.6 | O149: 338 | P149: 13.51 | Q149: 188 | R149: 148.14 | S149: 2,28,14 | T149: 171 | U149: 2268
A151: Meisjes B | R151: in minuten
A152: Plaats | B152: voornaam | C152: achternaam | D152: 100m | E152: pnt | F152: hoog | G152: pnt | H152: 200m | I152: pnt | J152: kogel | K152: pnt | L152: 100mH | M152: pnt | N152: ver | O152: pnt | P152: speer | Q152: pnt | S152: 800m | T152: pnt | U152: tot pnt
A153: 1 | B153: Judith | C153: Endstra | D153: 13.3 | E153: =IF(D153=0,0,INT(30672/(D153+0.24)-1682.5)) -> 582 | F153: 1.6 | G153: =IF(F153=0,0,IF(F153>1.4,INT(2635.6*SQRT(F153)-2501.5),INT(3039.8*SQRT(F153)-2981.5))) -> 832 | I153: =IF(H153=0,0,INT(54720/(H153+0.24)-1342)) -> 0 | J153: 8.74 | K153: =IF(J153=0,0,INT(429.5*SQRT(J153)-768.3)) -> 501 | M153: =IF(L153=0,0,INT(24672/(L153+0.24)-895.5)) -> 0 | N153: 5 | O153: =IF(N153=0,0,INT(1076.6*SQRT(N153)-1729.4)) -> 677 | P153: 16.33 | Q153: =IF(P153=0,0,INT(197.5*SQRT(P153)-482.5)) -> 315 | R153: 182.05 | S153: 3,02,05 | T153: =IF(R153=0,0,INT(247200/R153-975.5)) -> 382 | U153: =SUM(M153,E153,G153,K153,O153,Q153,T153,I153) -> 3289
A154: 2 | B154: Lotte | C154: Rothweiler | E154: 0 | F154: 1.5 | G154: 726 | I154: 0 | J154: 8.66 | K154: 495 | M154: 0 | N154: 4.56 | O154: 569 | P154: 23.5 | Q154: 474 | R154: 181.24 | S154: 3,01,24 | T154: 388 | U154: 2652
A155: 3 | B155: nienke | C155: Veerkamp | D155: 14.9 | E155: 343 | F155: 1.25 | G155: 417 | I155: 0 | J155: 9.62 | K155: 563 | M155: 0 | N155: 3.95 | O155: 410 | P155: 22.41 | Q155: 452 | R155: 178.97 | S155: 2,58,97 | T155: 405 | U155: 2590
A156: 4 | B156: vera | C156: Komin | D156: 15.8 | E156: 229 | F156: 1.2 | G156: 348 | I156: 0 | J156: 7.46 | K156: 404 | M156: 0 | N156: 3.78 | O156: 363 | P156: 16.56 | Q156: 321 | R156: 180.49 | S156: 3,00,49 | T156: 394 | U156: 2059
A157: 5 | B157: Puck | C157: Heerschop | D157: 14.9 | E157: 343 | F157: 1.25 | G157: 417 | I157: 0 | J157: 7.4 | K157: 400 | M157: 0 | N157: 3.44 | O157: 267 | P157: 15.5 | Q157: 295 | R157: 0 | S157: 0 | T157: 0 | U157: 1722
A158: 6 | B158: Marieke | C158: Mul | D158: 16.7 | E158: 128 | F158: 1.1 | G158: 206 | I158: 0 | J158: 9.43 | K158: 550 | M158: 0 | N158: 3.37 | O158: 246 | P158: 29.15 | Q158: 583 | R158: 0 | S158: 0 | T158: 0 | U158: 1713
A159: 7 | B159: Larice | C159: van Mil | D159: 15.8 | E159: 229 | F159: 1.2 | G159: 348 | I159: 0 | J159: 7.95 | K159: 442 | M159: 0 | N159: 3.68 | O159: 335 | P159: 17.58 | Q159: 345 | R159: 0 | S159: 0 | T159: 0 | U159: 1699
A160: 8 | B160: Nienke | C160: Ploem | E160: 0 | F160: 1.3 | G160: 484 | I160: 0 | K160: 0 | M160: 0 | O160: 0 | P160: 28.65 | Q160: 574 | R160: 0 | S160: 0 | T160: 0 | U160: 1058
A162: Meisjes A
A163: Plaats | B163: voornaam | C163: achternaam | D163: 100m | E163: pnt | F163: hoog | G163: pnt | H163: kogel | I163: pnt | J163: ver | K163: pnt | L163: Speer | M163: pnt | N163: tot pnt
A164: 1 | B164: Femke | C164: vd Wolf | D164: 13.7 | E164: =IF(D164=0,0,INT(30672/(D164+0.24)-1682.5)) -> 517 | F164: 1.3 | G164: =IF(F164=0,0,IF(F164>1.4,INT(2635.6*SQRT(F164)-2501.5),INT(3039.8*SQRT(F164)-2981.5))) -> 484 | H164: 7.02 | I164: =IF(H164=0,0,INT(429.5*SQRT(H164)-768.3)) -> 369 | J164: 3.93 | K164: =IF(J164=0,0,INT(1076.6*SQRT(J164)-1729.4)) -> 404 | L164: 16.30 | M164: 56 | N164: =SUM(E164,G164,I164,K164,M164) -> 1830
A167: Dames | N167: in minuten
A168: Plaats | B168: voornaam | C168: achternaam | D168: 100m | E168: pnt | F168: hoog | G168: pnt | H168: kogel | I168: pnt | J168: ver | K168: pnt | L168: speer | M168: pnt | O168: 800m | P168: pnt | Q168: tot pnt
A169: 1 | B169: Mirthe | C169: Wiltink | D169: 14.6 | E169: =IF(D169=0,0,INT(30672/(D169+0.24)-1682.5)) -> 384 | F169: 1.4 | G169: =IF(F169=0,0,IF(F169>1.4,INT(2635.6*SQRT(F169)-2501.5),INT(3039.8*SQRT(F169)-2981.5))) -> 615 | H169: 9.92 | I169: =IF(H169=0,0,INT(429.5*SQRT(H169)-768.3)) -> 584 | J169: 4.6 | K169: =IF(J169=0,0,INT(1076.6*SQRT(J169)-1729.4)) -> 579 | L169: 29.08 | M169: =IF(L169=0,0,INT(190.2*SQRT(L169)-711.3)) -> 314 | N169: 176.09 | O169: 2,56,09 | P169: =IF(N169=0,0,INT(247200/N169-975.5)) -> 428 | Q169: =SUM(E169,G169,I169,K169,M169,P169) -> 2904
A170: 2 | B170: Alyanne | C170: Bos | D170: 15.4 | E170: =IF(D170=0,0,INT(30672/(D170+0.24)-1682.5)) -> 278 | F170: 0 | G170: =IF(F170=0,0,IF(F170>1.4,INT(2635.6*SQRT(F170)-2501.5),INT(3039.8*SQRT(F170)-2981.5))) -> 0 | H170: 6.67 | I170: =IF(H170=0,0,INT(429.5*SQRT(H170)-768.3)) -> 340 | J170: 3.73 | K170: =IF(J170=0,0,INT(1076.6*SQRT(J170)-1729.4)) -> 349 | L170: 18.59 | M170: =IF(L170=0,0,INT(190.2*SQRT(L170)-711.3)) -> 108 | N170: 0 | O170: 0 | P170: =IF(N170=0,0,INT(247200/N170-975.5)) -> 0 | Q170: =SUM(E170,G170,I170,K170,M170,P170) -> 1075
